bitfinex-derivatives/quotes_BTCF0:USTF0_20250114
["timestamp","ask_amount","ask_price","bid_price","bid_amount"]
[1736868824937,0.101,96700.0,96698.0,0.051725]
[1736868826229,0.152724,96700.0,96698.0,0.051725]
[1736868826631,0.101,96700.0,96698.0,0.051725]
[1736868829539,0.101,96700.0,96698.0,0.06175059]
[1736868831037,0.152724,96700.0,96699.0,0.051724]
[1736868831428,0.101,96700.0,96699.0,0.051724]
[1736868831836,0.00155236,96703.0,96699.0,0.051724]
[1736868832041,3.6e-07,96703.0,96702.0,0.412523]
[1736868833229,0.051709,96729.0,96718.0,0.051714]
[1736868833430,0.051707,96733.0,96716.0,0.3608]
[1736868833630,0.3618,96734.0,96716.0,0.3608]
[1736868833842,0.051713,96721.0,96717.0,0.051715]
[1736868834138,0.001,96733.0,96716.0,0.3608]
[1736868834341,0.0481,96735.0,96723.0,0.051711]
[1736868834532,0.051711,96725.0,96723.0,0.051711]
[1736868834725,0.051711,96724.0,96723.0,0.051711]
[1736868834928,0.4089,96735.0,96716.0,0.3618]
[1736868835131,0.051714,96719.0,96718.0,0.051714]
[1736868835332,0.051715,96717.0,96716.0,0.3608]
[1736868835530,0.4089,96735.0,96716.0,0.3608]
[1736868835531,0.04926,96735.0,96716.0,0.3608]
[1736868835737,0.051709,96728.0,96727.0,0.3608]
[1736868835938,0.05022001,96744.0,96727.0,0.3608]
[1736868836138,0.0491,96744.0,96743.0,0.3608]
[1736868836330,0.1008,96744.0,96743.0,0.3608]
[1736868837838,0.0491,96744.0,96727.0,0.3608]
[1736868838045,0.051709,96728.0,96727.0,0.3608]
[1736868838741,0.051709,96728.0,96727.0,0.412509]
[1736868838942,0.051704,96738.0,96736.0,0.051705]
[1736868839137,0.051705,96736.0,96729.0,0.051708]
[1736868839341,0.051705,96736.0,96733.0,0.051706]
[1736868839543,0.051705,96736.0,96728.0,0.16954973]
[1736868839544,0.051705,96736.0,96735.0,0.051705]
[1736868840240,0.051703,96741.0,96740.0,0.051702]
[1736868840643,0.0489,96748.0,96736.0,0.051705]
[1736868840842,0.051701,96742.0,96740.0,0.051702]
[1736868841042,0.051699,96747.0,96735.0,0.3608]
[1736868841347,0.0517,96744.0,96737.0,0.16954973]
[1736868841542,0.051701,96743.0,96741.0,0.051702]
[1736868841845,0.051701,96743.0,96742.0,0.051701]
[1736868842245,0.0489,96748.0,96735.0,0.3608]
[1736868842445,0.051704,96738.0,96736.0,0.051704]
[1736868842747,0.051702,96742.0,96741.0,0.051701]
[1736868842946,0.051699,96747.0,96744.0,0.0517]
[1736868843145,0.0517,96746.0,96743.0,0.0517]
[1736868843346,0.0489,96748.0,96743.0,0.0517]
[1736868843546,0.0517,96745.0,96744.0,0.0517]
[1736868843850,0.00155138,96749.0,96747.0,0.051699]
[1736868844040,0.3608,96795.0,96748.0,0.3608]
[1736868844235,0.3608,96795.0,96770.0,0.16954973]
[1736868844236,0.0463,96783.0,96770.0,0.16954973]
[1736868844538,0.051684,96776.0,96774.0,0.051684]
[1736868844843,0.3608,96775.0,96759.0,0.3608]
[1736868845046,0.051692,96760.0,96759.0,0.3608]
[1736868845343,0.3618,96775.0,96760.0,0.051691]
[1736868845344,0.051688,96767.0,96760.0,0.051691]
[1736868845536,0.3608,96775.0,96759.0,0.3608]
[1736868845740,0.051691,96766.0,96765.0,0.051689]
[1736868846046,0.051697,96750.0,96749.0,0.051697]
[1736868847550,0.051697,96750.0,96748.0,0.3608]
[1736868847742,0.051697,96750.0,96749.0,0.001]
[1736868848943,0.05171,96726.0,96725.0,0.1836182]
[1736868849249,0.3608,96740.0,96723.0,0.1836182]
[1736868849444,0.001,96750.0,96738.0,0.051703]
[1736868849653,0.051702,96740.0,96739.0,0.3608]
[1736868849850,0.051702,96741.0,96740.0,0.051702]
[1736868850241,0.051702,96741.0,96739.0,0.3608]
[1736868850242,0.0483,96759.0,96739.0,0.31085016]
[1736868850443,0.051697,96752.0,96751.0,0.051696]
[1736868850644,0.051694,96757.0,96748.0,0.3608]
[1736868851153,0.0483,96759.0,96756.0,0.051694]
[1736868851350,0.001,96757.0,96756.0,0.051694]
[1736868851748,0.001,96757.0,96756.0,0.412494]
[1736868851955,0.05169,96764.0,96761.0,0.051691]
[1736868852150,0.05169,96763.0,96761.0,0.051691]
[1736868852353,0.051693,96758.0,96756.0,0.412494]
[1736868852656,0.051698,96749.0,96748.0,0.3608]
[1736868853453,0.051698,96749.0,96739.0,0.1836182]
[1736868853646,0.051702,96741.0,96739.0,0.1836182]
[1736868854152,0.051704,96737.0,96736.0,0.3608]
[1736868854356,0.049,96748.0,96747.0,0.051699]
[1736868854557,0.0488,96761.0,96747.0,0.3608]
[1736868854756,0.051688,96768.0,96760.0,0.051692]
[1736868855061,0.051689,96766.0,96764.0,0.051689]
[1736868855758,0.00112001,96773.0,96765.0,0.3608]
[1736868855960,0.052687,96768.0,96765.0,0.412489]
[1736868856158,0.001,96768.0,96765.0,0.412489]
[1736868856347,0.001,96768.0,96767.0,0.051688]
[1736868857360,0.102085,96774.0,96765.0,0.3608]
[1736868857660,0.001,96766.0,96765.0,0.412489]
[1736868858048,0.051679,96783.0,96769.0,0.051687]
[1736868858247,0.051679,96783.0,96769.0,0.41224746]
[1736868858653,0.00255105,96770.0,96769.0,0.41224746]
[1736868858852,0.051677,96788.0,96770.0,0.103372]
[1736868859054,0.051677,96788.0,96787.0,0.3608]
[1736868859251,0.051677,96788.0,96787.0,0.412477]
[1736868860256,0.0513,96793.0,96791.0,0.051675]
[1736868860656,0.051675,96792.0,96791.0,0.051675]
[1736868860868,0.0513,96793.0,96787.0,0.3608]
[1736868861059,0.051677,96788.0,96787.0,0.3608]
[1736868861260,0.051677,96788.0,96787.0,0.36162667]
[1736868862063,0.051677,96788.0,96787.0,0.36062667]
[1736868862264,0.0513,96793.0,96790.0,0.051675]
[1736868862563,0.0513,96793.0,96787.0,0.36062667]
[1736868862564,0.051677,96788.0,96787.0,0.36062667]
[1736868862762,0.001,96792.0,96782.0,0.05168]
[1736868863062,0.051679,96783.0,96782.0,0.05168]
[1736868864364,0.051679,96783.0,96782.0,0.001]
[1736868864871,0.052679,96783.0,96782.0,0.001]
[1736868865057,0.051693,96758.0,96756.0,0.3608]
[1736868865265,0.051687,96769.0,96756.0,0.3608]
[1736868865564,0.051693,96757.0,96756.0,0.3608]
[1736868867556,0.001,96757.0,96756.0,0.412494]
[1736868870055,0.051686,96771.0,96756.0,0.412494]
[1736868870362,0.001,96757.0,96756.0,0.412494]
[1736868870667,0.16954973,96780.0,96756.0,0.7216]
[1736868870862,0.051687,96769.0,96768.0,0.3608]
[1736868871061,0.001,96779.0,96768.0,0.3608]
[1736868871263,0.051681,96781.0,96778.0,0.412482]
[1736868872168,0.0516,96783.0,96771.0,0.051686]
[1736868872371,0.051684,96775.0,96768.0,0.3608]
[1736868872574,0.001,96782.0,96768.0,0.3608]
[1736868872873,0.0516,96783.0,96781.0,0.3608]
[1736868873164,0.05168,96782.0,96781.0,0.3608]
[1736868873365,0.36188001,96794.0,96781.0,0.3608]
[1736868873567,0.051676,96789.0,96787.0,0.051677]
[1736868873763,0.0499,96799.0,96781.0,0.3608]
[1736868873960,0.0499,96799.0,96768.0,0.42034236]
[1736868873961,0.051682,96779.0,96775.0,0.051683]
[1736868874164,0.3608,96789.0,96775.0,0.051683]
[1736868874368,0.051683,96778.0,96775.0,0.051683]
[1736868874567,0.001,96788.0,96775.0,0.051683]
[1736868874771,0.051685,96773.0,96768.0,0.37094236]
[1736868875369,0.051685,96773.0,96768.0,0.3608]
[1736868875776,0.3618,96779.0,96768.0,0.3608]
[1736868875973,0.051687,96769.0,96768.0,0.3608]
[1736868877073,0.3618,96779.0,96768.0,0.3608]
[1736868877273,0.051686,96771.0,96768.0,0.3608]
[1736868877668,0.051686,96771.0,96770.0,0.051686]
[1736868879182,0.051687,96769.0,96768.0,0.3608]
[1736868879571,0.051691,96762.0,96761.0,0.3608]
[1736868880172,0.051691,96762.0,96761.0,0.412491]
[1736868880876,0.0507,96768.0,96761.0,0.3608]
[1736868881180,0.0507,96768.0,96766.0,0.051688]
[1736868881572,0.051691,96762.0,96761.0,0.3608]
[1736868881978,0.051688,96767.0,96761.0,0.3608]
[1736868882179,0.051684,96776.0,96775.0,0.051683]
[1736868882382,0.051682,96779.0,96777.0,0.051682]
[1736868882774,0.0482,96782.0,96781.0,0.05168]
[1736868883990,0.0482,96782.0,96774.0,0.7216]
[1736868884180,0.01005489,96792.0,96774.0,0.3608]
[1736868884381,0.051675,96792.0,96785.0,0.051678]
[1736868884685,0.051678,96787.0,96784.0,0.3608]
[1736868884874,0.051678,96787.0,96786.0,0.051678]
[1736868886289,0.052678,96787.0,96786.0,0.052678]
[1736868886785,0.052678,96787.0,96786.0,0.001]
[1736868886987,0.053678,96787.0,96766.0,0.1836182]
[1736868887285,0.051687,96770.0,96768.0,0.051687]
[1736868887497,0.051687,96769.0,96768.0,0.051687]
[1736868888585,0.051689,96765.0,96764.0,0.051689]
[1736868889780,0.052689,96765.0,96764.0,0.051689]
[1736868889976,0.05169,96764.0,96763.0,0.3608]
[1736868890176,0.09969,96764.0,96763.0,0.3608]
[1736868890574,0.001,96765.0,96764.0,0.05169]
[1736868891282,0.001,96765.0,96763.0,0.3608]
[1736868891478,0.05169,96764.0,96763.0,0.3608]
[1736868892078,0.05469,96764.0,96763.0,0.3608]
[1736868892581,0.003,96764.0,96763.0,0.41249]
[1736868894790,0.051695,96754.0,96753.0,0.3608]
[1736868895087,0.05469,96764.0,96753.0,0.3608]
[1736868895088,0.0486,96763.0,96753.0,0.3608]
[1736868895282,0.051698,96749.0,96748.0,0.1836182]
[1736868895792,0.0517,96745.0,96744.0,0.24482427]
[1736868895986,0.0517,96745.0,96744.0,0.16562427]
[1736868896290,0.051708,96729.0,96712.0,0.0522]
[1736868896483,0.051716,96714.0,96712.0,0.051717]
[1736868896784,0.051718,96712.0,96710.0,0.2476107]
[1736868897884,0.37188917,96729.0,96710.0,0.2506107]
[1736868898185,0.01008917,96729.0,96718.0,0.3608]
[1736868898396,0.001,96727.0,96726.0,0.3608]
[1736868898591,0.051709,96728.0,96726.0,0.3608]
[1736868899392,0.051711,96725.0,96723.0,0.051711]
[1736868899686,0.051707,96733.0,96728.0,0.051709]
[1736868899892,0.01108549,96740.0,96726.0,0.3608]
[1736868900284,0.01108549,96740.0,96726.0,0.3618]
[1736868900483,0.051705,96735.0,96734.0,0.3608]
[1736868900686,0.3608,96738.0,96726.0,0.001]
[1736868900988,0.051711,96724.0,96723.0,0.3608]
[1736868902285,0.051711,96724.0,96723.0,0.3638]
[1736868902483,0.052711,96724.0,96723.0,0.003]
[1736868902688,0.051717,96712.0,96711.0,0.3608]
[1736868903084,0.051717,96712.0,96711.0,0.34106046]
[1736868903785,0.051714,96718.0,96711.0,0.34106046]
[1736868904087,0.051708,96731.0,96726.0,0.05171]
[1736868904286,0.051708,96730.0,96726.0,0.3608]
[1736868904787,0.001,96737.0,96726.0,0.3608]
[1736868905094,0.05171,96727.0,96724.0,0.051711]
[1736868905288,0.05171,96726.0,96724.0,0.051711]
[1736868905598,0.051711,96724.0,96723.0,0.3608]
[1736868907084,0.01024328,96727.0,96715.0,0.051716]
[1736868907287,0.051715,96716.0,96715.0,0.051716]
[1736868907689,0.001,96732.0,96713.0,0.7216]
[1736868907992,0.3608,96757.0,96731.0,0.3608]
[1736868908295,0.051699,96747.0,96744.0,0.0517]
[1736868908596,0.051699,96747.0,96746.0,0.051699]
[1736868908786,0.25697906,96754.0,96743.0,0.3608]
[1736868909094,0.17054973,96753.0,96732.0,0.1038]
[1736868909294,0.051697,96751.0,96737.0,0.051704]
[1736868909593,0.051703,96738.0,96737.0,0.051704]
[1736868909792,0.051706,96733.0,96732.0,0.1038]
[1736868909998,0.051706,96733.0,96732.0,0.051]
[1736868910885,0.003,96747.0,96732.0,0.051]
[1736868911096,0.051702,96742.0,96741.0,0.051701]
[1736868911296,0.051702,96742.0,96741.0,0.412501]
[1736868912391,0.057702,96742.0,96741.0,0.412501]
[1736868913289,0.006,96742.0,96741.0,0.412501]
[1736868914191,0.051693,96759.0,96758.0,0.051693]
[1736868915092,0.0617463,96759.0,96758.0,0.051693]
[1736868915299,0.00155101,96768.0,96753.0,0.0482]
[1736868915496,0.051686,96773.0,96772.0,0.051685]
[1736868915996,0.051689,96768.0,96767.0,0.051688]
[1736868916599,0.051689,96765.0,96758.0,0.001]
[1736868916791,0.051692,96759.0,96758.0,0.052693]
[1736868917201,0.051692,96759.0,96758.0,0.001]
[1736868917493,0.3608,96769.0,96755.0,0.051694]
[1736868917689,0.051694,96756.0,96755.0,0.051694]
[1736868918092,0.051697,96750.0,96749.0,0.149896]
[1736868918294,0.001,96756.0,96748.0,0.3608]
[1736868918496,0.051703,96738.0,96737.0,0.101304]
[1736868919001,0.051707,96732.0,96731.0,0.0486]
[1736868919505,0.05171,96726.0,96725.0,0.3608]
[1736868921098,0.05271,96726.0,96725.0,0.003]
[1736868921696,0.41351,96726.0,96725.0,0.004]
[1736868921997,0.05271,96726.0,96725.0,0.004]
[1736868922299,0.41351,96726.0,96725.0,0.004]
[1736868922802,0.41251,96726.0,96725.0,0.004]
[1736868923697,0.05171,96726.0,96725.0,0.004]
[1736868924196,0.05271,96726.0,96725.0,0.004]
[1736868924402,0.051716,96715.0,96714.0,0.3608]
[1736868924894,0.3608,96732.0,96714.0,0.3608]
[1736868925101,0.3608,96732.0,96727.0,0.051709]
[1736868925102,0.051708,96730.0,96727.0,0.051709]
[1736868925300,0.051708,96729.0,96728.0,0.0973]
[1736868925487,0.051711,96724.0,96723.0,0.3608]
[1736868927200,0.051708,96729.0,96723.0,0.3608]
[1736868927403,0.051708,96729.0,96728.0,0.051709]
[1736868927706,0.05171,96727.0,96724.0,0.051711]
[1736868928297,0.3608,96732.0,96724.0,0.051711]
[1736868928298,0.08488817,96729.0,96724.0,0.051711]
[1736868928500,0.05171,96725.0,96724.0,0.051711]
[1736868928695,0.08488817,96729.0,96727.0,0.051709]
[1736868929002,0.08488817,96729.0,96728.0,0.051709]
[1736868929598,0.24520761,96746.0,96745.0,0.0517]
[1736868929795,0.24520761,96746.0,96745.0,0.4125]
[1736868930798,0.08640761,96746.0,96745.0,0.4125]
[1736868930995,0.24722471,96771.0,96760.0,0.051692]
[1736868931203,0.051689,96766.0,96760.0,0.412492]
[1736868931402,0.24722471,96771.0,96760.0,0.412492]
[1736868931604,0.05324213,96761.0,96760.0,0.3608]
[1736868932108,0.05524213,96761.0,96760.0,0.3608]
[1736868932296,0.00755113,96761.0,96760.0,0.413492]
[1736868933102,0.051678,96787.0,96760.0,0.413492]
[1736868933302,0.0415,96789.0,96781.0,0.3608]
[1736868933605,0.05168,96782.0,96781.0,0.3608]
[1736868933808,0.05168,96782.0,96760.0,0.413491]
[1736868933809,0.051681,96780.0,96760.0,0.413491]
[1736868934104,0.051688,96767.0,96766.0,0.051688]
[1736868934305,0.001,96779.0,96764.0,0.3608]
[1736868934499,0.00108001,96782.0,96781.0,0.05168]
[1736868934706,0.001,96787.0,96778.0,0.3608]
[1736868934908,0.001,96787.0,96786.0,0.412478]
[1736868935107,0.1032887,96789.0,96788.0,0.051677]
[1736868935294,0.0617887,96789.0,96788.0,0.051677]
[1736868935500,0.051676,96789.0,96788.0,0.051677]
[1736868936306,0.051676,96789.0,96786.0,0.3608]
[1736868936307,0.051677,96787.0,96786.0,0.3618]
[1736868937208,0.051677,96787.0,96786.0,0.413478]
[1736868937509,0.051677,96787.0,96786.0,0.3618]
[1736868937817,0.051683,96776.0,96767.0,0.3608]
[1736868938007,0.051684,96774.0,96772.0,0.051685]
[1736868938207,0.051684,96774.0,96767.0,0.3608]
[1736868938208,0.051687,96768.0,96767.0,0.3608]
[1736868938610,0.001,96779.0,96772.0,0.051685]
[1736868938808,0.051675,96791.0,96778.0,0.412482]
[1736868939015,0.051675,96791.0,96790.0,0.051676]
[1736868939209,0.05168,96786.0,96785.0,0.051678]
[1736868941009,0.051675,96791.0,96790.0,0.051675]
[1736868941208,0.051675,96791.0,96790.0,0.412475]
[1736868942609,0.051675,96791.0,96790.0,0.3608]
[1736868943618,0.27946403,96800.0,96780.0,0.3608]
[1736868943619,0.05168,96783.0,96780.0,0.3608]
[1736868943815,0.05168,96783.0,96782.0,0.05168]
[1736868944021,0.3608,96797.0,96769.0,0.3608]
[1736868944022,0.001,96782.0,96769.0,0.3608]
[1736868944214,0.051686,96772.0,96771.0,0.051685]
[1736868945111,0.051686,96770.0,96769.0,0.3648]
[1736868945716,0.051686,96770.0,96769.0,0.416487]
[1736868946019,0.051686,96770.0,96769.0,0.3648]
[1736868947318,0.051686,96770.0,96769.0,0.3608]
[1736868949115,0.051683,96779.0,96769.0,0.412487]
[1736868949428,0.051683,96779.0,96778.0,0.051682]
[1736868950321,0.051686,96774.0,96773.0,0.051684]
[1736868950933,0.051686,96770.0,96769.0,0.3608]
[1736868951119,0.051686,96770.0,96769.0,0.412487]
[1736868951320,0.051686,96770.0,96769.0,0.3608]
[1736868952119,0.051686,96770.0,96769.0,0.412487]
[1736868954118,0.3608,96787.0,96769.0,0.412487]
[1736868954119,0.051684,96779.0,96778.0,0.051682]
[1736868955225,0.051684,96779.0,96769.0,0.3608]
[1736868955529,0.051693,96758.0,96747.0,0.098899]
[1736868955723,0.051693,96758.0,96757.0,0.051693]
[1736868955916,0.051693,96757.0,96756.0,0.3608]
[1736868956116,0.051693,96757.0,96752.0,0.051696]
[1736868956328,0.051695,96753.0,96752.0,0.051696]
[1736868956623,0.051695,96753.0,96752.0,0.3608]
[1736868956823,0.0493,96765.0,96752.0,0.3608]
[1736868957035,0.00995155,96765.0,96755.0,0.051694]
[1736868957219,0.051694,96756.0,96755.0,0.051694]
[1736868957418,0.0507,96769.0,96755.0,0.051694]
[1736868957723,0.051691,96761.0,96760.0,0.3608]
[1736868957927,0.052688,96768.0,96767.0,0.051688]
[1736868958232,0.051688,96768.0,96767.0,0.051688]
[1736868958437,0.051685,96774.0,96773.0,0.051683]
[1736868959129,0.051682,96778.0,96771.0,0.051685]
[1736868959431,0.01027965,96779.0,96771.0,0.051685]
[1736868959432,0.051686,96772.0,96771.0,0.051685]
[1736868960333,0.051686,96772.0,96766.0,0.051688]
[1736868960334,0.12864858,96772.0,96766.0,0.051688]
[1736868960932,0.051688,96767.0,96766.0,0.051688]
[1736868961719,0.051691,96761.0,96760.0,0.3608]
[1736868961924,0.051693,96757.0,96756.0,0.051694]
[1736868962138,0.07696258,96771.0,96756.0,0.3608]
[1736868962320,0.1,96800.0,96771.0,0.051686]
[1736868962321,0.00108001,96772.0,96771.0,0.051686]
[1736868962521,0.2473523,96794.0,96774.0,0.051684]
[1736868962726,0.24627229,96794.0,96793.0,0.412474]
[1736868963129,0.29794529,96794.0,96793.0,0.412474]
[1736868963935,0.051673,96794.0,96793.0,0.3608]
[1736868964237,0.051673,96794.0,96793.0,0.412474]
[1736868965423,0.12850084,96794.0,96793.0,0.412474]
[1736868966038,0.07682784,96794.0,96793.0,0.412474]
[1736868966639,0.12850084,96794.0,96793.0,0.412474]
[1736868967227,0.07682784,96794.0,96793.0,0.412474]
[1736868967442,0.1,96800.0,96793.0,0.412474]
[1736868967627,0.1,96800.0,96799.0,0.412471]
[1736868967828,0.24627229,96811.0,96799.0,0.412471]
[1736868968033,0.24627229,96811.0,96810.0,0.412465]
[1736868968339,0.25627671,96811.0,96810.0,0.412465]
[1736868969241,0.30794071,96811.0,96810.0,0.412465]
[1736868969626,0.30794071,96811.0,96801.0,0.16954973]
[1736868969627,0.06166842,96811.0,96801.0,0.16954973]
[1736868969834,0.3608,96803.0,96799.0,0.001]
[1736868970142,0.05167,96800.0,96799.0,0.001]
[1736868970331,0.05168,96782.0,96774.0,0.24697446]
[1736868970525,0.051684,96775.0,96774.0,0.24697446]
[1736868970731,0.051686,96771.0,96762.0,0.01016046]
[1736868970935,0.05169,96763.0,96754.0,0.24697446]
[1736868971133,0.051694,96755.0,96754.0,0.22631155]
[1736868972339,0.051701,96743.0,96742.0,0.3608]
[1736868972541,0.051701,96743.0,96742.0,0.33186711]
[1736868973337,0.099893,96758.0,96734.0,0.3608]
[1736868973338,0.051697,96750.0,96734.0,0.3608]
[1736868973643,0.05171,96726.0,96724.0,0.3608]
[1736868974538,0.3608,96744.0,96724.0,0.3608]
[1736868974539,0.051707,96732.0,96724.0,0.3608]
[1736868974744,0.01012252,96744.0,96730.0,0.3608]
[1736868974934,0.051696,96752.0,96747.0,0.051698]
[1736868975135,0.051696,96752.0,96742.0,0.3608]
[1736868975136,0.051693,96759.0,96751.0,0.3608]
[1736868975338,0.051693,96759.0,96756.0,0.051694]
[1736868975538,0.3608,96765.0,96752.0,0.0484]
[1736868975834,0.051686,96770.0,96766.0,0.051688]
[1736868976049,0.01002093,96775.0,96773.0,0.051684]
[1736868976546,0.00155067,96785.0,96784.0,0.051679]
[1736868977139,0.36156,96808.0,96800.0,0.05167]
[1736868977440,0.00076,96808.0,96806.0,0.051667]
[1736868977645,0.051665,96810.0,96802.0,0.051669]
[1736868977950,0.051666,96809.0,96807.0,0.051666]
[1736868978544,0.051666,96809.0,96807.0,0.051606]
[1736868979047,0.009,96809.0,96808.0,0.051666]
[1736868981372,0.001,96809.0,96808.0,0.052666]
[1736868985161,0.001,96809.0,96808.0,0.001]
[1736868985560,0.002,96809.0,96808.0,0.001]
[1736868985754,0.051672,96797.0,96787.0,0.3608]
[1736868985951,0.001,96809.0,96795.0,0.3608]
[1736868986155,0.051667,96807.0,96805.0,0.051667]
[1736868986454,0.051668,96805.0,96804.0,0.3608]
[1736868986651,0.001,96809.0,96807.0,0.051666]
[1736868987462,0.051665,96810.0,96807.0,0.051666]
[1736868987663,0.051659,96822.0,96813.0,0.051663]
[1736868987862,0.051663,96815.0,96813.0,0.051663]
[1736868989259,0.051663,96815.0,96813.0,0.052663]
[1736868990059,0.051659,96821.0,96813.0,0.001]
[1736868990265,0.051661,96819.0,96818.0,0.05166]
[1736868990674,0.051663,96814.0,96813.0,0.001]
[1736868990867,0.051663,96814.0,96770.0,0.16954973]
[1736868990868,0.051672,96797.0,96785.0,0.3608]
[1736868991068,0.051672,96797.0,96795.0,0.051673]
[1736868991254,0.051672,96796.0,96795.0,0.051673]
[1736868991668,0.0511,96813.0,96799.0,0.051671]
[1736868991669,0.05167,96800.0,96799.0,0.051671]
[1736868991968,0.05167,96800.0,96795.0,0.3608]
[1736868991969,0.051665,96811.0,96810.0,0.051664]
[1736868993166,0.01011033,96813.0,96795.0,0.3608]
[1736868993368,0.05167,96801.0,96800.0,0.05167]
[1736868993556,0.051672,96798.0,96797.0,0.051672]
[1736868994760,0.003,96811.0,96810.0,0.051665]
[1736868995266,0.4086,96823.0,96814.0,0.051663]
[1736868995473,0.0478,96823.0,96814.0,0.051663]
[1736868995671,0.00999171,96817.0,96814.0,0.051663]
[1736868996166,0.05166,96820.0,96819.0,0.05166]
[1736868997667,0.05366,96820.0,96819.0,0.05266]
[1736868998065,0.05366,96820.0,96819.0,0.001]
[1736868999665,0.05366,96820.0,96819.0,0.41346]
[1736869000777,0.00084,96833.0,96832.0,0.051653]
[1736869000966,0.05319988,96838.0,96837.0,0.051651]
[1736869001267,0.00154988,96838.0,96837.0,0.051651]
[1736869001473,0.05319988,96838.0,96837.0,0.051651]
[1736869002870,0.00254988,96838.0,96826.0,0.051656]
[1736869003063,0.051656,96827.0,96826.0,0.051656]
[1736869003260,0.16954973,96836.0,96819.0,0.3618]
[1736869003466,0.16954973,96836.0,96819.0,0.3608]
[1736869003662,0.001,96835.0,96819.0,0.3608]
[1736869003872,0.05166,96820.0,96819.0,0.3608]
[1736869004974,0.13549833,96820.0,96819.0,0.41246]
[1736869005174,0.08383833,96820.0,96819.0,0.41246]
[1736869005972,0.051654,96830.0,96829.0,0.051655]
[1736869006167,0.051654,96830.0,96829.0,0.412455]
[1736869006468,0.3608,96843.0,96829.0,0.3608]
[1736869006769,0.051652,96835.0,96834.0,0.051651]
[1736869007175,0.01022356,96841.0,96829.0,0.3608]
[1736869007373,0.05165,96839.0,96837.0,0.051651]
[1736869008270,0.05165,96839.0,96837.0,0.412451]
[1736869008470,0.08546628,96838.0,96837.0,0.413451]
[1736869009868,0.24627229,96850.0,96837.0,0.3618]
[1736869010075,0.24627229,96850.0,96849.0,0.412444]
[1736869011371,0.051642,96854.0,96853.0,0.051642]
[1736869012378,0.0100515,96859.0,96858.0,0.051639]
[1736869012579,0.051639,96859.0,96858.0,0.051639]
[1736869014071,0.051639,96859.0,96858.0,0.052639]
[1736869017575,0.413439,96859.0,96833.0,0.3608]
[1736869017765,0.051642,96854.0,96833.0,0.3608]
[1736869017966,0.051647,96843.0,96839.0,0.051649]
[1736869018172,0.051647,96843.0,96835.0,0.051652]
[1736869018372,0.051654,96832.0,96825.0,0.3608]
[1736869018580,0.051654,96832.0,96826.0,0.051656]
[1736869018779,0.051655,96829.0,96828.0,0.051655]
[1736869018984,0.0475,96831.0,96812.0,0.051664]
[1736869018985,0.051662,96815.0,96812.0,0.051664]
[1736869019275,0.051663,96814.0,96800.0,0.16396122]
[1736869019480,0.001,96829.0,96801.0,0.01009891]
[1736869019667,0.3608,96837.0,96820.0,0.051659]
[1736869019872,0.3608,96837.0,96824.0,0.3608]
[1736869019873,0.051657,96825.0,96824.0,0.3608]
[1736869020080,0.051657,96825.0,96824.0,0.412458]
[1736869020381,0.051657,96825.0,96824.0,0.3608]
[1736869021176,0.051657,96825.0,96824.0,0.3618]
[1736869021873,0.053657,96825.0,96824.0,0.3608]
[1736869024778,0.053657,96825.0,96813.0,0.3608]
[1736869024779,0.003,96825.0,96813.0,0.3608]
[1736869024979,0.3608,96814.0,96810.0,0.051665]
[1736869025177,0.3608,96814.0,96797.0,0.3608]
[1736869025375,0.051671,96798.0,96797.0,0.3608]
[1736869027289,0.051676,96789.0,96788.0,0.00154963]
[1736869029081,0.00084,96795.0,96788.0,0.00354963]
[1736869029392,0.00080001,96805.0,96794.0,0.3608]
[1736869029583,0.01027196,96806.0,96788.0,0.00354963]
[1736869029779,0.051676,96790.0,96788.0,0.00354963]
[1736869029979,0.051676,96790.0,96788.0,0.002]
[1736869030293,0.3608,96793.0,96769.0,0.01041715]
[1736869030294,0.051686,96771.0,96769.0,0.01041715]
[1736869030785,0.051687,96768.0,96767.0,0.3608]
[1736869031188,0.052687,96768.0,96767.0,0.3608]
[1736869031885,0.051687,96768.0,96767.0,0.3608]
[1736869032892,0.052687,96768.0,96767.0,0.3608]
[1736869033889,0.052687,96768.0,96767.0,0.3668]
[1736869034391,0.051687,96768.0,96767.0,0.3668]
[1736869034791,0.052687,96768.0,96767.0,0.3668]
[1736869034988,0.413487,96768.0,96767.0,0.006]
[1736869035287,0.413487,96768.0,96758.0,0.3608]
[1736869035487,0.051692,96759.0,96758.0,0.3608]
[1736869035896,0.052692,96759.0,96758.0,0.3608]
[1736869037396,0.051679,96785.0,96758.0,0.784293]
[1736869037593,0.051685,96772.0,96771.0,0.412486]
[1736869038194,0.051678,96787.0,96780.0,0.051681]
[1736869038497,0.05168,96781.0,96780.0,0.051681]
[1736869038686,0.052677,96787.0,96779.0,0.3608]
[1736869038890,0.36160001,96796.0,96779.0,0.3608]
[1736869039088,0.36160001,96796.0,96788.0,0.3608]
[1736869039089,0.051676,96789.0,96788.0,0.3608]
[1736869039586,0.052676,96789.0,96778.0,0.3608]
[1736869039788,0.051682,96779.0,96778.0,0.3608]
[1736869040196,0.0100269,96796.0,96778.0,0.3608]
[1736869040390,0.051675,96791.0,96790.0,0.051675]
[1736869040692,0.051676,96790.0,96789.0,0.3608]
[1736869041595,0.051677,96787.0,96786.0,0.051678]
[1736869041796,0.05168,96782.0,96781.0,0.05168]
[1736869042388,0.051682,96779.0,96778.0,0.3608]
[1736869044092,0.3608,96783.0,96766.0,0.3608]
[1736869044299,0.3608,96775.0,96756.0,0.3608]